Cogmind - Beta 16.1 @@@ ROGUE MODE // 2026.02.13 @ 21:43:53 Player: Genericgamer16 Result: Destroyed by 31-VSM(R) with Subdweller Laser Performance ------------- Evolutions (0) 0 Regions Visited (3) 600 Robots Destroyed (26) 130 Value Destroyed (460) 460 Prototype IDs (3) 60 Alien Tech Used (0) 0 Bonus (0) 0 TOTAL SCORE: 1250 Bonus ------- None Cogmind --------- Core Integrity 0/250 Matter 300/300 Energy 157/170 System Corruption 0% Temperature Cool (6) Movement Core (150) Ox2 Location -10/Subcaves Parts ------- > --- POWER (1) -------- Makeshift Power Source > --- PROPULSION (2) --- (None) > --- UTILITY (2) ------ (None) > --- WEAPON (2) ------- Beam Rifle > --- INVENTORY (5) ---- Light Nuclear Core Small Storage Unit Peak State ------------ > --- POWER ------------ Light Ion Engine > --- PROPULSION ------- Makeshift Leg Makeshift Leg > --- UTILITY ---------- Signal Interpreter > --- WEAPON ----------- Grenade Launcher Mining Laser > --- INVENTORY -------- Light Nuclear Core Flight Unit Small Storage Unit [Rating: 12] Favorites ----------- Power Ion Engine Engine Ion Engine Power Core Light Nuclear Core Propulsion Light Treads Treads Light Treads Leg Aluminum Leg Flight Unit Flight Unit Utility Backup Plating I Storage Small Storage Unit Processor Signal Interpreter Protection Backup Plating I Weapon Assault Rifle Energy Gun EM Pulse Gun Ballistic Gun Assault Rifle Launcher Grenade Launcher Special Weapon Mining Laser Build | -11 -10 -10 -10 ------- Run | Yrd Mat Min Sub Slots Evolved . | . . . . Power . | . . . . Propulsion . | . . . . Utility . | . . . . Weapon . | . . . . Parts Attached 24 | 8 2 6 8 Power 4 | 1 . 1 2 Engine 3 | 1 . 1 1 Core 1 | . . . 1 Reactor . | . . . . Propulsion 10 | 4 . 2 4 Treads 2 | 2 . . . Leg 4 | 2 . . 2 Wheel . | . . . . Hover . | . . . . Flight 4 | . . 2 2 Utility 3 | 1 1 1 . Device . | . . . . Storage 2 | 1 1 . . Processor 1 | . . 1 . Hackware . | . . . . Protection . | . . . . Artifact . | . . . . Weapon 7 | 2 1 2 2 Energy Gun 3 | 1 . 1 1 Energy Cannon . | . . . . Ballistic Gun 2 | 1 1 . . Ballistic Cannon . | . . . . Launcher 1 | . . . 1 Special Weapon 1 | . . 1 . Impact Weapon . | . . . . Slashing Weapon . | . . . . Piercing Weapon . | . . . . Special Melee Weapon . | . . . . Unidentified Prototypes . | . . . . Parts Lost 14 | . 2 . 12 Power 2 | . 1 . 1 Propulsion 6 | . . . 6 Utility 2 | . . . 2 Weapon 4 | . 1 . 3 Highest Loss Streak 5 | . 1 . 5 To Critical Strikes . | . . . . Average Backups 7 | 3 9 11 3 Power 1 | . 1 1 1 Propulsion 3 | 2 4 2 . Utility 1 | . 1 3 1 Weapon 2 | . 2 4 . Tool/Special . | . . . . Unused Backups 12 | . 3 9 . Power 1 | . . 1 . Propulsion 5 | . 3 2 . Utility 3 | . . 3 . Weapon 3 | . . 3 . Tool/Special . | . . . . Average Slot Usage (%) 86 | . 89 98 69 Engine 12 | . 11 13 11 Treads 10 | . 12 15 . Leg 9 | . 15 . 3 Flight 6 | . . 11 16 Storage 9 | . 14 9 . Processor 4 | . . 4 13 Protection 7 | . 6 14 4 Energy Gun 8 | . 10 4 5 Ballistic Gun 13 | . 17 18 . Special Weapon 3 | . . 4 9 Peak Build Rating 12 | 6 8 9 12 Average Rating 6 | 4 6 8 6 On Entrance 5 | . 6 7 8 Avg Prop Armor Cover (%) . | . . . . Naked Turns . | . . . . Heaviest Build 30 | 14 30 28 8 Greatest Support 40 | 40 40 40 40 Greatest Overweight (x) 9 | 1 . 9 1 Average Overweight (x) . | . . . . Largest Inventory Capacity 15 | 8 15 15 5 Average Capacity 9 | 7 11 11 5 Most Carried 15 | 6 15 15 5 Average Carried 7 | 3 9 11 3 Final Capacity 15 | 8 15 5 5 Final Carried 15 | 6 15 5 2 Class Distribution -------------------- 100% | Mutant Dominant Class ---------------- Mutant | -10/Materials Mutant | -10/Mines Mutant | -10/Subcaves Resources | -11 -10 -10 -10 ----------- Run | Yrd Mat Min Sub Matter Collected 706 | 229 90 307 80 Remotely . | . . . . Salvage Created 695 | . 227 368 100 Parts 49 | . 20 27 2 Haulers Intercepted . | . . . . Recyclers Shooed 2 | . . 2 . Parts Field Recycled . | . . . . Retrieved Matter . | . . . . Parts Self-Destructed 1 | . . . 1 Prevented . | . . . . Parts Restored . | . . . . Kills | -11 -10 -10 -10 ------- Run | Yrd Mat Min Sub Combat Hostiles Destroyed 23 | . 10 10 3 Guns 19 | . 9 10 . AOE 4 | . 1 . 3 Classes Destroyed 5 | . 3 1 1 Recycler 2 | . . 2 . Watcher 1 | . 1 . . Swarmer 16 | . 8 8 . Grunt 6 | . 2 2 2 Sentry 1 | . . . 1 Best Kill Streak 9 | . 5 9 3 Combat Bots Only 8 | . 5 8 3 Max Kills in Single Turn 3 | . 1 2 3 Gunslinging . | . . . . Exploded 3 | . 1 . 3 Melee . | . . . . Uniques/NPCs Destroyed . | . . . . Combat | -11 -10 -10 -10 -------- Run | Yrd Mat Min Sub Hostile Shots Fired 145 | . 60 42 43 Missed 42 | . 7 17 18 Hits 103 | . 53 25 25 Projectile 103 | . 53 25 25 Critical Strikes 2 | . 2 . . Damage Taken 1316 | . 492 229 595 Core 271 | . 51 52 168 Absorbed by Shields . | . . . . Core Remaining (%) 100 | 100 . . . Volleys Fired 63 | 4 31 17 11 Largest 2 | 2 2 2 2 Hottest 145 | 60 60 40 145 Shots Fired 115 | 8 61 34 12 Gun 108 | 8 61 34 5 Cannon . | . . . . Launcher 2 | . . . 2 Special 5 | . . . 5 Kinetic 82 | 4 44 34 . Thermal 8 | . . . 8 Explosive 2 | . . . 2 Electromagnetic 23 | 4 17 . 2 Robot Hit Streak 8 | 5 8 5 2 Robot Miss Streak 3 | 1 3 3 2 Penetration Max . | . . . . Secondary Targets 3 | . . 3 . Max Gunslinging Chain 1 | . . 1 . Shots Hit Robots 69 | 6 39 20 4 Core Hits 35 | 1 14 15 5 Critical Kills 1 | . . 1 . Critical Parts Destroyed . | . . . . Critical Strikes 1 | . . 1 . Destroy 1 | . . 1 . Melee Attacks . | . . . . Impact . | . . . . Slashing . | . . . . Piercing . | . . . . Sneak Attacks . | . . . . Combat Hostiles . | . . . . Follow-up Attacks . | . . . . Damage Inflicted 1172 | 78 600 284 210 Guns 867 | 78 477 284 28 Cannons . | . . . . Explosions 280 | . 123 . 157 Melee . | . . . . Ramming 1 | . . . 1 Kinetic 713 | 54 375 284 . Thermal 175 | . 123 . 52 Explosive 157 | . . . 157 Electromagnetic 126 | 24 102 . . Impact . | . . . . Slashing . | . . . . Piercing . | . . . . Highest Corruption . | . . . . Average Corruption . | . . . . Corruption Purged . | . . . . Corruption Blocked . | . . . . Overload Shots . | . . . . Overflow Damage 55 | . 27 . 28 Projectiles . | . . . . Explosions 55 | . 27 . 28 Melee . | . . . . Knockbacks . | . . . . Impact . | . . . . Kinetic . | . . . . Secondary . | . . . . Self-Inflicted Damage 115 | . 39 . 76 Shots 3 | . 1 . 2 Rammed . | . . . . Targets Rammed 1 | . . . 1 Kicked 1 | . . . 1 Crushed . | . . . . Highest Temperature 33 | . 33 4 . Average Temperature 9 | . 9 4 . Received Heat Transfer 240 | . 48 39 153 Siege Activations . | . . . . Martial Activations . | . . . . Shielding Activations . | . . . . Robots Disrupted . | . . . . Combat Hostiles . | . . . . Robots Corrupted . | . . . . Combat Hostiles . | . . . . Parts Fried . | . . . . Impact Corruptions . | . . . . Robots Melted . | . . . . Combat Hostiles . | . . . . Parts Melted 1 | . 1 . . Heat Transferred 324 | . 200 . 124 Parts Sabotaged . | . . . . Parts Stolen . | . . . . Parts Stripped . | . . . . Power Chain Reactions 1 | . 1 . . Alert | -11 -10 -10 -10 ------- Run | Yrd Mat Min Sub Maximum Alert Level . | . . . . Low Security (%) 100 | 100 100 100 . Level 1 . | . . . . Level 2 . | . . . . Level 3 . | . . . . Level 4 . | . . . . Level 5 . | . . . . High Security . | . . . . Max Security . | . . . . Peak Influence 186 | . 108 186 . Initial 21 | . . 21 . Average 51 | . 38 106 . Influence Increases 619 | . 319 240 60 Destroy 0b10 Robot/C 460 | . 200 200 60 Destroy 0b10 Robot/NC 15 | . 5 10 . Destroy Leader 82 | . 52 30 . Successful Hack 27 | . 27 . . Disable Machine 15 | . 15 . . Destroy Structure 5 | . 5 . . Partial Spotted 15 | . 15 . . Influence Decreases 589 | . 265 173 151 Entered New Map 97 | . . 33 64 Time Decay 452 | . 245 140 67 Lost Part 40 | . 20 . 20 Squads Dispatched 3 | . 3 . . Investigation 3 | . 3 . . Extermination . | . . . . Reinforcement . | . . . . Assault . | . . . . Garrison . | . . . . Intercept . | . . . . Searches Triggered . | . . . . Construction Impeded . | . . . . Haulers Reinforced . | . . . . Active Scanning Responses . | . . . . Cargo Convoy Interrupts . | . . . . Stealth | -11 -10 -10 -10 --------- Run | Yrd Mat Min Sub Distress Signals . | . . . . Communications Jammed . | . . . . Distress Signals . | . . . . Times Spotted 36 | . 14 10 12 Peak Tracking Total 7 | . 6 5 7 Tactical Retreats 3 | . . . 3 Traps | -11 -10 -10 -10 ------- Run | Yrd Mat Min Sub Traps Triggered 1 | . 1 . . Indirectly . | . . . . Trap Hack Attempts . | . . . . Triggered . | . . . . Disarmed . | . . . . Reprogrammed . | . . . . Reused . | . . . . Traps Extracted . | . . . . Installed . | . . . . Triggered . | . . . . Machines | -11 -10 -10 -10 ---------- Run | Yrd Mat Min Sub Machines Disabled 1 | . 1 . . Max in Single Turn 1 | . 1 . . Machines Repaired . | . . . . Machines Dismantled . | . . . . Machines Sabotaged . | . . . . Overloaded Fab Kills . | . . . . Hacking | -11 -10 -10 -10 --------- Run | Yrd Mat Min Sub Machines Accessed 10 | . 9 . 1 Terminals 8 | . 8 . . Fabricators . | . . . . Repair Stations 1 | . 1 . . Recycling Units . | . . . . Scanalyzers . | . . . . Garrison Access . | . . . . Total Hacks 31 | . 26 . 5 Successful 16 | . 11 . 5 Failed 15 | . 15 . . Catastrophic 2 | . 2 . . Database Lockouts . | . . . . Manual 26 | . 22 . 4 Terminals 25 | . 25 . . Fabricators . | . . . . Repair Stations 1 | . 1 . . Recycling Units . | . . . . Scanalyzers . | . . . . Garrison Access . | . . . . Terminal Hacks 10 | . 5 . 5 Record 5 | . . . 5 Prototype ID Bank 1 | . 1 . . Branch Access Points 1 | . 1 . . Terminal Index 1 | . 1 . . Recall Investigation 1 | . 1 . . Hauler Manifests 1 | . 1 . . Fabricator Hacks . | . . . . Repair Station Hacks 1 | . 1 . . Refit 1 | . 1 . . Recycling Unit Hacks . | . . . . Scanalyzer . | . . . . Garrison Access Hacks . | . . . . Unauthorized Hacks 5 | . 5 . . Terminals 5 | . 5 . . Assimilate 1 | . 1 . . Botnet 4 | . 4 . . Fabricators . | . . . . Repair Stations . | . . . . Recycling Units . | . . . . Scanalyzers . | . . . . Garrison Access . | . . . . Data Cores Recovered . | . . . . Used . | . . . . Hacking Detections 8 | . 8 . . Full Trace Events 4 | . 4 . . Feedback Events . | . . . . Feedback Blocked . | . . . . Robot Schematics Acquired . | . . . . Robots Built . | . . . . Authchips . | . . . . Time . | . . . . Total Robot Build Rating . | . . . . Part Schematics Acquired . | . . . . Parts Built . | . . . . Authchips . | . . . . Time . | . . . . Total Part Build Rating . | . . . . Part Studies Acquired . | . . . . Parts Repaired . | . . . . Time . | . . . . Parts Recycled . | . . . . Recycled Matter . | . . . . Retrieved Matter . | . . . . Retrieved Components . | . . . . Parts Scanalyzed . | . . . . Part Schematics Acquired . | . . . . Parts Damaged . | . . . . Bothacking | -11 -10 -10 -10 ------------ Run | Yrd Mat Min Sub Used RIF Installer . | . . . . Robots Hacked . | . . . . Non-combat . | . . . . Combat . | . . . . Robot Hacks Applied . | . . . . Relay Couplers Released . | . . . . Fabnet Peak Effective % . | . . . . Robots Rewired . | . . . . Allies Hacked . | . . . . Hacks Repelled . | . . . . Allies | -11 -10 -10 -10 -------- Run | Yrd Mat Min Sub Total Allies . | . . . . Largest Group . | . . . . Highest-Rated Group . | . . . . Highest-Rated Ally . | . . . . Total Orders . | . . . . Ally Attacks . | . . . . Total Damage . | . . . . Kills . | . . . . Allies Corrupted . | . . . . Allies Melted . | . . . . Intel | -11 -10 -10 -10 ------- Run | Yrd Mat Min Sub Active Infowar (turns) . | . . . . Robot Analysis Total . | . . . . Derelict Logs Recovered . | . . . . Drone Launches . | . . . . Drone Recoveries . | . . . . Exploration | -11 -10 -10 -10 ------------- Run | Yrd Mat Min Sub Turns Passed 1583 | 90 842 288 363 Spaces Moved 1146 | 45 336 200 565 Core 23 | 8 . 1 14 Treads 236 | 18 151 67 . Legs 223 | 19 185 . 19 Wheels . | . . . . Hover . | . . . . Flight 664 | . . 132 532 Fastest Speed 37 | 50 120 37 37 Average Speed 81 | 128 137 84 42 Slowest Speed 520 | 160 160 520 140 Overloaded Moves . | . . . . Propulsion Burnouts . | . . . . Robots Hopped 2 | . . 1 1 Potential Cave-ins . | . . . . Cave-ins Triggered . | . . . . Exploration Rate (%) 32 | 3 46 54 27 Regions Visited 3 Branch Regions 2 Pre-discovered Areas . | . . . . Known Exits Taken 2 | . 1 1 . Unknown Exits Taken 1 | 1 . . . Scrap Searched . | . . . . Spaces Dug . | . . . . Terrain Destroyed 23 | . 4 . 19 Melee . | . . . . Projectile . | . . . . AOE 23 | . 4 . 19 Terrain Rammed . | . . . . Walls Destroyed . | . . . . Machines Disabled . | . . . . Actions | -11 -10 -10 -10 --------- Run | Yrd Mat Min Sub Total 1675 | 68 655 288 664 Wait 386 | . 268 46 72 Move 1139 | 44 335 197 563 Hop 2 | . . 1 1 Pick Up 37 | 12 13 8 4 Fast Attach 2 | . . 2 . Attach 18 | 6 1 3 8 Detach 1 | . . . 1 Swap 10 | 2 3 2 3 Drop 16 | . 4 12 . Fire 63 | 4 31 17 11 Melee . | . . . . Ram . | . . . . Kick 1 | . . . 1 Crush . | . . . . Escape Stasis . | . . . . Rewire . | . . . . Trap . | . . . . Miscellaneous . | . . . . Route ------- -11/Scrapyard -10/Materials (discovered 2 exits: *Min x2) -10/Mines -10/Subcaves History --------- Turn | Location | Event 34 | -11/Scrapyard | Discovered new exit (range 15) 91 | -11/Scrapyard | Entered Materials 301 | -10/Materials | Build established: Mutant 456 | -10/Materials | Identified exit to Mines 933 | -10/Materials | Entered Mines 1105 | -10/Mines | Destroyed 8 combat bots 1151 | -10/Mines | YI-UF0 nonchalantly dropped a Grenade Launcher on the ground 1216 | -10/Mines | Discovered new exit (range 5) 1221 | -10/Mines | Identified exit to Subcaves 1221 | -10/Mines | Entered Subcaves 1222 | -10/Subcaves | Approached by a straggling Scientist 1242 | -10/Subcaves | Visited Clippyterm 1243 | -10/Subcaves | Learned Factory trap positions 1243 | -10/Subcaves | Learned Factory garrison access intel 1351 | -10/Subcaves | Core integrity fell below 50% 1383 | -10/Subcaves | Lost 5 parts (3n1u1w) 1504 | -10/Subcaves | Lost 4 parts (1p2n1w) 1560 | -10/Subcaves | Core integrity fell below 20% 1584 | -10/Subcaves | Destroyed by 31-VSM(R) with Subdweller Laser Last Messages --------------- 01466_ Kicked AJ-P63(R) out of the way. 01467_ Mak. Leg destroyed. 01469_ Lgt. Ion Engine destroyed. 01473_ Mak. Leg destroyed. 01537_ Acquired 5 matter. 01571_ Destroyed Sml. Laser. 01572_ Signal Interpreter destroyed. 01573_ G-34 Mercenary destroyed. 01573_ Flight Unit destroyed. 01573_ Destroyed Flight Unit. 01573_ Grenade Launcher destroyed. 01573_ Destroyed Grenade Launcher. 01573_ Y-45 Defender destroyed. [Achievement: Resistances Are Futile] 01573_ G-34 Mercenary destroyed. 01575_ Acquired 34 matter. 01577_ Acquired Beam Rifle. 01578_ Lgt. Treads fries itself beyond repair. 01578_ Acquired 26 matter. 01580_ Acquired 10 matter. Map ----- +----------------------------------------------------+ | | | ?????????????????????????????????????????????????? | | ?????????????????????????????????????????????????? | | ?????????????????????????????????????????????????? | | ?????????????????????????????????????????????????? | | ?????????????????????????????????????????????????? | | ?????????????????????????????????????????????????? | | ?????????????????????????????????????????????????? | | ?????????????????????????????????????????????????? | | ?????????????????????????????????????????????????? | | ?????????????????????????????????????????????????? | | ?????????????????????????????????????????????????? | | ?????????????????????????????????????????????????? | | ?????????????????????????????????????????????????? | | ?????????????????????????????????????????????????? | | ???###???????????????????????????????????????????? | | ## #???????????????????????????????????????????? | | ?? ?????????????????????????????????????? | | ??? ????????????????????????????????????? | | ????# # ????????#######?????????????????????? | | ???#### # ?????????# # # ##????????????????????? | | ??## ??????????# #?###????????????????? | | ?## ???????????# #?# ##???????????????? | | ## #????####????## ##?# ##??????????????? | | # #????## #?????# % #?# ##?????????????? | | # % #???## #?????## @ ### #?????????????? | | ## ##?## ###???## #?????????????? | | ## ## ### ##?## ##?????????????? | | ## ### % %###??????????????? | | ## ## #????????????????? | | # %%! ##????????????????? | | # #R #?????????????????? | | % ### ### # #?????????????????? | | ###?## ### # #?????????????????? | | ## # %#??# ####### ##?????????????????? | | ?# ## ##??## ## ###### #??????????????????? | | ?# #### ### #####??????????????? | | ## ## #?# #??????????????? | | # ## #?# ### #??????????????? | | #### ### ##?# #?????????????? | | # # #?## ##?# % ##?????????????? | | #######?# % #??????????????? | | ##???# ##??????????????? | | ### ##??# #???????????????? | | # #??# ## #???????????????? | | ##### #?? ?## #???????????????? | | %# ##??# ##? ???# #???????????????? | | ####### #?## #### ????####???????????????? | | ??????### #?# #?### ???????????????????????? | | ???????## ### #######???????????????????????? | +----------------------------------------------------+ Best States ------------- Heat Dissipation 25 Energy Generation 15 Energy Capacity 250 Matter Stores 300 Matter Capacity 300 Sight Range 16 Terrain Scan Density 10 Armor Coverage 80 Evasion (%) 62 Recoil Reduction 2 Item Schematics ----------------- None Robot Schematics ------------------ None Fabricated ------------ Nothing Repaired ---------- Nothing Studied --------- None Alien Tech Used ----------------- None Achievements -------------- Fitting Room Resistances Are Futile Challenges ------------ None Game ------ Seed CooledShrapnelStorage Manual? 0 Play Time 00:26:24 Cumulative 36.7 hours Start 2026.02.13 @ 21:16:48 End 2026.02.13 @ 21:43:53 Sessions 1 Manual Loads 0 Difficulty Rogue Special Mode None Game No. 39 Rogue 39 Adventurer 0 Explorer 0 Win Type - Total 0 Types 0/0/0/0/0/0/0/0/0/0 Lore% 21 Gallery% 25 Achievement% 18 Wizard Run 0 Options --------- Layout 1 ASCII 0 Keyboard 0 Movement Mouse Keybinds 0 Fullscreen 1 Font 24/Smallcaps Map View 50x35 Zoom Use 0% Tactical HUD 1 Map Filters NONE Filters NONE Steam 1 RUN: 726b0095-9ff7-4f2b-83e3-c98179343a5e